[Event "*** SCC Grand Prix: Titled Tuesday Blitz"]
[Site "Chess.com"]
[Date "2020.08.04"]
[Round "2"]
[White "Belka1989"]
[Black "vovachesss"]
[Result "0-1"]
[WhiteElo "2312"]
[BlackElo "2584"]
[TimeControl "180+1"]
[EndTime "14:01:58 PDT"]
[Termination "vovachesss won by checkmate"]

1. d4 {[%clk 0:03:00.9]} 1... Nf6 {[%clk 0:03:00]} 2. Nf3 {[%clk 0:03:01.3]}
2... c6 {[%clk 0:03:00.5]} 3. Bf4 {[%clk 0:03:01.7]} 3... d5 {[%clk 0:03:00.8]}
4. e3 {[%clk 0:03:02.4]} 4... Bg4 {[%clk 0:02:58.6]} 5. c4 {[%clk 0:03:02]} 5...
e6 {[%clk 0:02:58.2]} 6. Qb3 {[%clk 0:03:02.3]} 6... Qc8 {[%clk 0:02:57.3]} 7.
Nbd2 {[%clk 0:02:53.9]} 7... Nbd7 {[%clk 0:02:57.2]} 8. Rc1 {[%clk 0:02:38]}
8... a5 {[%clk 0:02:57]} 9. c5 {[%clk 0:02:25.8]} 9... Be7 {[%clk 0:02:52.8]}
10. Bd3 {[%clk 0:02:21.4]} 10... O-O {[%clk 0:02:52.9]} 11. O-O {[%clk
0:02:17.3]} 11... a4 {[%clk 0:02:46.1]} 12. Qc2 {[%clk 0:02:02.2]} 12... Bd8
{[%clk 0:02:39.6]} 13. Ne5 {[%clk 0:01:59.8]} 13... Bh5 {[%clk 0:02:37.5]} 14.
e4 {[%clk 0:01:42.1]} 14... Bc7 {[%clk 0:02:31.2]} 15. Nxd7 {[%clk 0:01:34.8]}
15... Bxf4 {[%clk 0:02:09]} 16. Nxf6+ {[%clk 0:01:33.2]} 16... gxf6 {[%clk
0:02:08.6]} 17. exd5 {[%clk 0:01:13.7]} 17... Bxd2 {[%clk 0:01:59.5]} 18. Qxd2
{[%clk 0:01:13.9]} 18... cxd5 {[%clk 0:01:59.1]} 19. Qf4 {[%clk 0:00:54.7]}
19... Bg6 {[%clk 0:01:52.6]} 20. Rc3 {[%clk 0:00:51.7]} 20... Kg7 {[%clk
0:01:49.2]} 21. h4 {[%clk 0:00:40.7]} 21... Qb8 {[%clk 0:01:47.7]} 22. Qg4
{[%clk 0:00:37.9]} 22... h5 {[%clk 0:01:47]} 23. Qf3 {[%clk 0:00:29.1]} 23...
Qc7 {[%clk 0:01:41.3]} 24. Re1 {[%clk 0:00:26.6]} 24... Rad8 {[%clk 0:01:39.4]}
25. Bxg6 {[%clk 0:00:23.9]} 25... fxg6 {[%clk 0:01:39.9]} 26. Rxe6 {[%clk
0:00:23.7]} 26... Rf7 {[%clk 0:01:39.5]} 27. Rce3 {[%clk 0:00:21.5]} 27... Rdd7
{[%clk 0:01:39.9]} 28. Qe2 {[%clk 0:00:19.1]} 28... Qf4 {[%clk 0:01:39.3]} 29.
Re7 {[%clk 0:00:08.7]} 29... Rdxe7 {[%clk 0:01:34]} 30. Rxe7 {[%clk 0:00:09.6]}
30... Qxd4 {[%clk 0:01:34.7]} 31. Rxf7+ {[%clk 0:00:08.1]} 31... Kxf7 {[%clk
0:01:35.6]} 32. Qb5 {[%clk 0:00:07.5]} 32... Ke6 {[%clk 0:01:21.4]} 33. Qb6+
{[%clk 0:00:05.4]} 33... Kf5 {[%clk 0:01:22]} 34. Qxb7 {[%clk 0:00:02.1]} 34...
Qxc5 {[%clk 0:01:21.6]} 35. Qd7+ {[%clk 0:00:02.5]} 35... Ke5 {[%clk 0:01:22.1]}
36. Qe8+ {[%clk 0:00:02.5]} 36... Kf5 {[%clk 0:01:22.3]} 37. Qe2 {[%clk
0:00:02.1]} 37... Qc1+ {[%clk 0:01:21.6]} 38. Kh2 {[%clk 0:00:02.4]} 38... Qf4+
{[%clk 0:01:22]} 39. g3 {[%clk 0:00:01.4]} 39... Qe4 {[%clk 0:01:22.6]} 40. Kh3
{[%clk 0:00:01.6]} 40... Qxe2 {[%clk 0:01:22.7]} 41. g4+ {[%clk 0:00:01.5]}
41... Qxg4+ {[%clk 0:01:20.4]} 42. Kh2 {[%clk 0:00:02.4]} 42... Kf4 {[%clk
0:01:21.3]} 43. b4 {[%clk 0:00:02.4]} 43... Kf3 {[%clk 0:01:22.2]} 44. a3 {[%clk
0:00:02.2]} 44... Qg2# {[%clk 0:01:23.1]} 0-1

[Event "*** SCC Grand Prix: Titled Tuesday Blitz"]
[Site "Chess.com"]
[Date "2020.08.04"]
[Round "2"]
[White "Sashadav97"]
[Black "igorkovalenko"]
[Result "0-1"]
[WhiteElo "2590"]
[BlackElo "2891"]
[TimeControl "180+1"]
[EndTime "14:02:02 PDT"]
[Termination "igorkovalenko won on time"]

1. d4 {[%clk 0:03:00.9]} 1... Nf6 {[%clk 0:03:00.1]} 2. c4 {[%clk 0:03:00.5]}
2... e6 {[%clk 0:03:00.1]} 3. Nc3 {[%clk 0:03:00.3]} 3... Bb4 {[%clk 0:03:00.1]}
4. e3 {[%clk 0:03:00.9]} 4... O-O {[%clk 0:02:59.9]} 5. Bd3 {[%clk 0:03:00.1]}
5... c5 {[%clk 0:03:00.1]} 6. Nf3 {[%clk 0:02:59.3]} 6... Nc6 {[%clk 0:03:00.3]}
7. O-O {[%clk 0:02:58.7]} 7... Bxc3 {[%clk 0:03:00.8]} 8. bxc3 {[%clk
0:02:59.5]} 8... d6 {[%clk 0:03:01.7]} 9. Nd2 {[%clk 0:02:56.1]} 9... e5 {[%clk
0:03:02]} 10. d5 {[%clk 0:02:55.6]} 10... Ne7 {[%clk 0:03:02]} 11. e4 {[%clk
0:02:55.5]} 11... Ng6 {[%clk 0:03:02]} 12. Re1 {[%clk 0:02:51.5]} 12... Ng4
{[%clk 0:02:59.3]} 13. Nf1 {[%clk 0:02:35.6]} 13... Qh4 {[%clk 0:02:51.4]} 14.
Qf3 {[%clk 0:02:22.1]} 14... Nh6 {[%clk 0:02:37.7]} 15. g3 {[%clk 0:02:07.1]}
15... Qh3 {[%clk 0:02:35.8]} 16. Ne3 {[%clk 0:02:04.5]} 16... Ng4 {[%clk
0:02:17.8]} 17. Nf1 {[%clk 0:01:40.9]} 17... f5 {[%clk 0:02:12]} 18. Qg2 {[%clk
0:01:26.5]} 18... Qxg2+ {[%clk 0:02:09]} 19. Kxg2 {[%clk 0:01:26.7]} 19... fxe4
{[%clk 0:02:09.2]} 20. Bxe4 {[%clk 0:01:27.6]} 20... Rxf2+ {[%clk 0:02:08.6]}
21. Kg1 {[%clk 0:01:28.3]} 21... Rf8 {[%clk 0:02:07.7]} 22. Ne3 {[%clk
0:01:10.6]} 22... Nxe3 {[%clk 0:02:04.7]} 23. Bxe3 {[%clk 0:01:10.2]} 23... Bf5
{[%clk 0:02:05.2]} 24. Bxf5 {[%clk 0:01:07.3]} 24... Rxf5 {[%clk 0:02:06.1]} 25.
Rab1 {[%clk 0:01:06.5]} 25... Rf7 {[%clk 0:02:05.4]} 26. a4 {[%clk 0:01:05.5]}
26... Raf8 {[%clk 0:01:58.9]} 27. a5 {[%clk 0:01:01.5]} 27... Rd7 {[%clk
0:01:59.1]} 28. Rb2 {[%clk 0:00:57.8]} 28... Rff7 {[%clk 0:01:58.1]} 29. Kg2
{[%clk 0:00:55.1]} 29... h6 {[%clk 0:01:58.3]} 30. Reb1 {[%clk 0:00:48.7]} 30...
Nf8 {[%clk 0:01:57.1]} 31. Re1 {[%clk 0:00:48.6]} 31... Nh7 {[%clk 0:01:56.6]}
32. Reb1 {[%clk 0:00:44.9]} 32... Nf6 {[%clk 0:01:56.5]} 33. Rb3 {[%clk
0:00:40]} 33... Kf8 {[%clk 0:01:55.5]} 34. R1b2 {[%clk 0:00:35.4]} 34... Ke8
{[%clk 0:01:55.3]} 35. Re2 {[%clk 0:00:33.7]} 35... Kd8 {[%clk 0:01:55.3]} 36.
Bd2 {[%clk 0:00:33.6]} 36... Kc8 {[%clk 0:01:55.3]} 37. Rb1 {[%clk 0:00:34.2]}
37... Rde7 {[%clk 0:01:48.4]} 38. Rbe1 {[%clk 0:00:29]} 38... Nd7 {[%clk
0:01:48.3]} 39. Be3 {[%clk 0:00:21.1]} 39... b6 {[%clk 0:01:48.6]} 40. Ra1
{[%clk 0:00:18.5]} 40... bxa5 {[%clk 0:01:48.8]} 41. Rxa5 {[%clk 0:00:17.6]}
41... Nb6 {[%clk 0:01:49.7]} 42. Bxc5 {[%clk 0:00:16.2]} 42... dxc5 {[%clk
0:01:48.7]} 43. d6 {[%clk 0:00:16.6]} 43... Re6 {[%clk 0:01:46.2]} 44. Rxc5+
{[%clk 0:00:15.9]} 44... Kd7 {[%clk 0:01:46.2]} 45. Ra5 {[%clk 0:00:13.8]} 45...
Kc6 {[%clk 0:01:37.5]} 46. Rd2 {[%clk 0:00:04.8]} 46... e4 {[%clk 0:01:32.6]}
47. c5 {[%clk 0:00:04.1]} 47... e3 {[%clk 0:01:33.1]} 48. Re2 {[%clk 0:00:02.1]}
48... Nc4 {[%clk 0:01:32.9]} 49. Ra4 {[%clk 0:00:01.5]} 49... Kxc5 {[%clk
0:01:32.9]} 0-1

[Event "*** SCC Grand Prix: Titled Tuesday Blitz"]
[Site "Chess.com"]
[Date "2020.08.04"]
[Round "2"]
[White "Alexander_Moskalenko"]
[Black "Filip_Covic"]
[Result "1-0"]
[WhiteElo "2798"]
[BlackElo "2364"]
[TimeControl "180+1"]
[EndTime "14:02:06 PDT"]
[Termination "Alexander_Moskalenko won by resignation"]

1. e4 {[%clk 0:03:00.9]} 1... e6 {[%clk 0:02:59.5]} 2. d4 {[%clk 0:03:00.4]}
2... d5 {[%clk 0:02:58.5]} 3. Nc3 {[%clk 0:02:59.1]} 3... Bb4 {[%clk 0:02:55.1]}
4. Bd2 {[%clk 0:02:58.7]} 4... Bxc3 {[%clk 0:02:49.8]} 5. Bxc3 {[%clk
0:02:57.9]} 5... dxe4 {[%clk 0:02:50.3]} 6. Qg4 {[%clk 0:02:56.6]} 6... Nf6
{[%clk 0:02:50.5]} 7. Qxg7 {[%clk 0:02:53.9]} 7... Rg8 {[%clk 0:02:50]} 8. Qh6
{[%clk 0:02:53.5]} 8... Nbd7 {[%clk 0:02:31.1]} 9. Ne2 {[%clk 0:02:52.1]} 9...
b6 {[%clk 0:02:01.6]} 10. h3 {[%clk 0:02:17.6]} 10... Bb7 {[%clk 0:01:56.6]} 11.
O-O-O {[%clk 0:01:59.8]} 11... Qe7 {[%clk 0:01:52.7]} 12. Ng3 {[%clk 0:01:59.7]}
12... O-O-O {[%clk 0:01:50]} 13. a3 {[%clk 0:01:56.2]} 13... Nd5 {[%clk
0:01:29.1]} 14. Be1 {[%clk 0:01:55.5]} 14... f5 {[%clk 0:01:24.3]} 15. Ne2
{[%clk 0:01:52.3]} 15... e3 {[%clk 0:01:02.4]} 16. fxe3 {[%clk 0:01:45.4]} 16...
Rg6 {[%clk 0:01:01.4]} 17. Qh4 {[%clk 0:01:40]} 17... Qg7 {[%clk 0:00:45]} 18.
Bd2 {[%clk 0:01:37.1]} 18... N7f6 {[%clk 0:00:25.2]} 19. Nf4 {[%clk 0:01:33.1]}
19... Nxf4 {[%clk 0:00:20.6]} 20. Qxf4 {[%clk 0:01:34]} 20... Ne4 {[%clk
0:00:15.1]} 21. Rg1 {[%clk 0:01:25.5]} 21... c5 {[%clk 0:00:14.8]} 22. g4 {[%clk
0:01:20.9]} 22... cxd4 {[%clk 0:00:13.9]} 23. exd4 {[%clk 0:01:21.3]} 23... Qxd4
{[%clk 0:00:12.3]} 24. Bd3 {[%clk 0:01:20.9]} 24... Nxd2 {[%clk 0:00:05.2]} 25.
Qxd2 {[%clk 0:01:21.8]} 25... Rg7 {[%clk 0:00:02.6]} 26. Rge1 {[%clk 0:01:14.4]}
26... fxg4 {[%clk 0:00:02.6]} 27. hxg4 {[%clk 0:01:15.3]} 27... Qxg4 {[%clk
0:00:02.7]} 28. Kb1 {[%clk 0:00:55.5]} 28... Kb8 {[%clk 0:00:03]} 29. Qe3 {[%clk
0:00:56]} 29... Qg5 {[%clk 0:00:02.9]} 30. Qxe6 {[%clk 0:00:56.1]} 30... Bd5
{[%clk 0:00:02.3]} 31. Qe2 {[%clk 0:00:51.9]} 31... Qg4 {[%clk 0:00:02.2]} 32.
Qe5+ {[%clk 0:00:51.3]} 32... Kb7 {[%clk 0:00:01.8]} 33. Be2 {[%clk 0:00:51.8]}
33... Rdd7 {[%clk 0:00:02]} 34. Bxg4 {[%clk 0:00:51.2]} 1-0

[Event "*** SCC Grand Prix: Titled Tuesday Blitz"]
[Site "Chess.com"]
[Date "2020.08.04"]
[Round "2"]
[White "lacafi"]
[Black "Tactictic"]
[Result "0-1"]
[WhiteElo "2024"]
[BlackElo "2393"]
[TimeControl "180+1"]
[EndTime "14:02:07 PDT"]
[Termination "Tactictic won on time"]

1. d4 {[%clk 0:03:00.9]} 1... Nf6 {[%clk 0:02:59.7]} 2. Nf3 {[%clk 0:03:01.2]}
2... d5 {[%clk 0:02:59.6]} 3. e3 {[%clk 0:02:59.4]} 3... c5 {[%clk 0:02:59.7]}
4. c3 {[%clk 0:02:58.7]} 4... Nc6 {[%clk 0:03:00]} 5. Nbd2 {[%clk 0:02:55.8]}
5... e6 {[%clk 0:02:57.1]} 6. Bd3 {[%clk 0:02:55.3]} 6... Bd6 {[%clk 0:02:57.6]}
7. Qe2 {[%clk 0:02:55.9]} 7... O-O {[%clk 0:02:54.9]} 8. dxc5 {[%clk 0:02:56.4]}
8... Bxc5 {[%clk 0:02:54.8]} 9. e4 {[%clk 0:02:57.3]} 9... b6 {[%clk 0:02:47]}
10. O-O {[%clk 0:02:53.3]} 10... Bb7 {[%clk 0:02:45.4]} 11. e5 {[%clk
0:02:51.4]} 11... Nd7 {[%clk 0:02:45]} 12. Re1 {[%clk 0:02:48.6]} 12... d4
{[%clk 0:02:43.6]} 13. Ne4 {[%clk 0:02:34.8]} 13... dxc3 {[%clk 0:02:18.2]} 14.
bxc3 {[%clk 0:02:28.1]} 14... Ndxe5 {[%clk 0:02:12.7]} 15. Nxe5 {[%clk 0:02:23]}
15... Nxe5 {[%clk 0:02:11.2]} 16. Nxc5 {[%clk 0:02:21.8]} 16... bxc5 {[%clk
0:02:06.6]} 17. Bxh7+ {[%clk 0:02:15.3]} 17... Kxh7 {[%clk 0:02:07.5]} 18. Qxe5
{[%clk 0:02:07]} 18... Qd5 {[%clk 0:02:05.1]} 19. Qxd5 {[%clk 0:01:55.8]} 19...
Bxd5 {[%clk 0:02:06]} 20. Be3 {[%clk 0:01:49.4]} 20... Rac8 {[%clk 0:01:54.1]}
21. Rab1 {[%clk 0:01:31.9]} 21... Rfd8 {[%clk 0:01:52.7]} 22. Rb5 {[%clk
0:01:21.7]} 22... Bxa2 {[%clk 0:01:50.5]} 23. Rxc5 {[%clk 0:01:11.1]} 23... Rxc5
{[%clk 0:01:47.1]} 24. Bxc5 {[%clk 0:01:11.2]} 24... a5 {[%clk 0:01:47.7]} 25.
h3 {[%clk 0:00:41.6]} 25... a4 {[%clk 0:01:44.4]} 26. Bb4 {[%clk 0:00:38.5]}
26... Bb3 {[%clk 0:01:29.3]} 27. g3 {[%clk 0:00:32.9]} 27... Rd2 {[%clk
0:01:27.4]} 28. Ra1 {[%clk 0:00:30.2]} 28... Kg6 {[%clk 0:01:26.1]} 29. Kf1
{[%clk 0:00:26.4]} 29... Kf5 {[%clk 0:01:22.2]} 30. f3 {[%clk 0:00:19.1]} 30...
e5 {[%clk 0:01:19]} 31. Kg1 {[%clk 0:00:18.3]} 31... e4 {[%clk 0:01:15.7]} 32.
fxe4+ {[%clk 0:00:14.6]} 32... Kxe4 {[%clk 0:01:16.6]} 33. Re1+ {[%clk
0:00:07.2]} 33... Kf3 {[%clk 0:01:15.5]} 34. c4 {[%clk 0:00:07.1]} 34... Bxc4
{[%clk 0:00:56.2]} 35. Bxd2 {[%clk 0:00:05.2]} 35... a3 {[%clk 0:00:56.7]} 36.
Ra1 {[%clk 0:00:04.7]} 36... a2 {[%clk 0:00:56.6]} 37. Bf4 {[%clk 0:00:04.5]}
37... Ke2 {[%clk 0:00:56]} 38. Be5 {[%clk 0:00:02.2]} 38... f6 {[%clk
0:00:56.1]} 0-1

[Event "*** SCC Grand Prix: Titled Tuesday Blitz"]
[Site "Chess.com"]
[Date "2020.08.04"]
[Round "2"]
[White "MF1966Idrisov"]
[Black "Joshukid"]
[Result "1/2-1/2"]
[WhiteElo "2331"]
[BlackElo "2715"]
[TimeControl "180+1"]
[EndTime "14:02:10 PDT"]
[Termination "Game drawn - insufficient material"]

1. Nf3 {[%clk 0:03:00.9]} 1... g6 {[%clk 0:02:58.1]} 2. d4 {[%clk 0:02:59.9]}
2... Bg7 {[%clk 0:02:56]} 3. b3 {[%clk 0:03:00.1]} 3... c5 {[%clk 0:02:52.6]} 4.
Bb2 {[%clk 0:03:00.1]} 4... cxd4 {[%clk 0:02:51.6]} 5. Bxd4 {[%clk 0:02:59.7]}
5... Nf6 {[%clk 0:02:51.8]} 6. c4 {[%clk 0:02:57.5]} 6... O-O {[%clk 0:02:51.4]}
7. g3 {[%clk 0:02:57.1]} 7... Nc6 {[%clk 0:02:52.3]} 8. Bb2 {[%clk 0:02:56.2]}
8... b6 {[%clk 0:02:47]} 9. Bg2 {[%clk 0:02:55.6]} 9... Bb7 {[%clk 0:02:46]} 10.
O-O {[%clk 0:02:55.6]} 10... Qc7 {[%clk 0:02:38.9]} 11. Nc3 {[%clk 0:02:55.1]}
11... a6 {[%clk 0:02:38.4]} 12. Qd2 {[%clk 0:02:54.7]} 12... Rad8 {[%clk
0:02:35.5]} 13. Rac1 {[%clk 0:02:53.3]} 13... Qb8 {[%clk 0:02:34.3]} 14. Nd5
{[%clk 0:02:52.4]} 14... Ba8 {[%clk 0:02:29.9]} 15. Nxf6+ {[%clk 0:02:49.1]}
15... exf6 {[%clk 0:02:28.8]} 16. Nd4 {[%clk 0:02:39.7]} 16... f5 {[%clk
0:02:26.6]} 17. Nf3 {[%clk 0:02:36]} 17... Ne5 {[%clk 0:02:17.9]} 18. Nxe5
{[%clk 0:02:34]} 18... Bxg2 {[%clk 0:02:13.5]} 19. Kxg2 {[%clk 0:02:29.9]} 19...
Bxe5 {[%clk 0:02:13.3]} 20. Bxe5 {[%clk 0:02:26.2]} 20... Qxe5 {[%clk
0:02:14.2]} 21. Rfd1 {[%clk 0:02:26.3]} 21... Rfe8 {[%clk 0:02:09.1]} 22. e3
{[%clk 0:02:26.2]} 22... Re6 {[%clk 0:02:09.2]} 23. Qd4 {[%clk 0:02:20.7]} 23...
Qc7 {[%clk 0:02:06.5]} 24. Rc3 {[%clk 0:02:16.5]} 24... h5 {[%clk 0:02:05.8]}
25. h4 {[%clk 0:02:15.6]} 25... d6 {[%clk 0:02:05.9]} 26. Rcd3 {[%clk
0:02:15.4]} 26... b5 {[%clk 0:01:53.2]} 27. cxb5 {[%clk 0:02:11.2]} 27... axb5
{[%clk 0:01:52.7]} 28. a4 {[%clk 0:02:11.2]} 28... Re4 {[%clk 0:01:49.4]} 29.
Qf6 {[%clk 0:01:49.6]} 29... bxa4 {[%clk 0:01:48]} 30. bxa4 {[%clk 0:01:45.7]}
30... Re6 {[%clk 0:01:26.7]} 31. Qd4 {[%clk 0:01:44.9]} 31... Ra8 {[%clk
0:01:19.9]} 32. Ra3 {[%clk 0:01:38.2]} 32... Qc6+ {[%clk 0:01:13.2]} 33. Qd5
{[%clk 0:01:34.1]} 33... Qa6 {[%clk 0:01:08.4]} 34. a5 {[%clk 0:01:27.9]} 34...
Re5 {[%clk 0:01:08.5]} 35. Qxd6 {[%clk 0:01:25.4]} 35... Qxd6 {[%clk 0:01:08.5]}
36. Rxd6 {[%clk 0:01:24.8]} 36... Rexa5 {[%clk 0:01:09.4]} 37. Rxa5 {[%clk
0:01:24.5]} 37... Rxa5 {[%clk 0:01:10.3]} 38. Rd8+ {[%clk 0:01:21.4]} 38... Kg7
{[%clk 0:01:10.3]} 39. Rd2 {[%clk 0:01:21.1]} 39... Ra3 {[%clk 0:01:06.1]} 40.
Rc2 {[%clk 0:01:21]} 40... Rd3 {[%clk 0:01:05.7]} 41. Rb2 {[%clk 0:01:21.1]}
41... Kf6 {[%clk 0:01:06]} 42. Rc2 {[%clk 0:01:21.2]} 42... Rd6 {[%clk
0:01:06.3]} 43. Rb2 {[%clk 0:01:21.3]} 43... Rc6 {[%clk 0:01:06.9]} 44. Rd2
{[%clk 0:01:21.3]} 44... Ke5 {[%clk 0:01:07.2]} 45. Rb2 {[%clk 0:01:21.3]} 45...
f6 {[%clk 0:01:07.7]} 46. Rb5+ {[%clk 0:01:21.2]} 46... Ke6 {[%clk 0:01:07.9]}
47. Rb2 {[%clk 0:01:20.5]} 47... Rc7 {[%clk 0:01:06.5]} 48. Ra2 {[%clk
0:01:20.2]} 48... Kf7 {[%clk 0:01:06.8]} 49. Rb2 {[%clk 0:01:20]} 49... g5
{[%clk 0:01:07.3]} 50. hxg5 {[%clk 0:01:18.1]} 50... fxg5 {[%clk 0:01:08.2]} 51.
Rb6 {[%clk 0:01:17.6]} 51... Kg7 {[%clk 0:01:08.2]} 52. Rd6 {[%clk 0:01:16.7]}
52... Ra7 {[%clk 0:01:07.1]} 53. Rc6 {[%clk 0:01:16.7]} 53... Rf7 {[%clk
0:01:07.1]} 54. Rb6 {[%clk 0:01:16.6]} 54... Rf6 {[%clk 0:01:07.3]} 55. Rb7+
{[%clk 0:01:16.1]} 55... Kg6 {[%clk 0:01:07.1]} 56. Rb8 {[%clk 0:01:16.4]} 56...
f4 {[%clk 0:01:06.2]} 57. exf4 {[%clk 0:01:13.9]} 57... gxf4 {[%clk 0:01:07.1]}
58. Rg8+ {[%clk 0:01:11.7]} 58... Kh7 {[%clk 0:01:06.7]} 59. Rg5 {[%clk
0:01:10]} 59... Kh6 {[%clk 0:01:06.6]} 60. Rc5 {[%clk 0:01:09.4]} 60... fxg3
{[%clk 0:01:04.2]} 61. fxg3 {[%clk 0:01:08.9]} 61... Ra6 {[%clk 0:01:05.1]} 62.
Kh3 {[%clk 0:01:08.9]} 62... Rg6 {[%clk 0:01:04.7]} 63. Rd5 {[%clk 0:01:08.7]}
63... Rg5 {[%clk 0:01:04.8]} 64. Rxg5 {[%clk 0:01:08.3]} 64... Kxg5 {[%clk
0:01:05.7]} 65. Kg2 {[%clk 0:01:08.2]} 65... Kg4 {[%clk 0:01:06.6]} 66. Kh2
{[%clk 0:01:08.5]} 66... h4 {[%clk 0:01:06.5]} 67. gxh4 {[%clk 0:01:08.2]} 67...
Kxh4 {[%clk 0:01:07.3]} 1/2-1/2

[Event "*** SCC Grand Prix: Titled Tuesday Blitz"]
[Site "Chess.com"]
[Date "2020.08.04"]
[Round "2"]
[White "MuradNuri"]
[Black "NotFischer"]
[Result "0-1"]
[WhiteElo "2407"]
[BlackElo "2191"]
[TimeControl "180+1"]
[EndTime "14:02:16 PDT"]
[Termination "NotFischer won by resignation"]

1. e4 {[%clk 0:00:20.3]} 1... d5 {[%clk 0:02:57.5]} 2. exd5 {[%clk 0:00:20]}
2... Nf6 {[%clk 0:02:57.7]} 3. Nf3 {[%clk 0:00:20.3]} 3... Bg4 {[%clk
0:02:57.6]} 4. h3 {[%clk 0:00:20.1]} 4... Bxf3 {[%clk 0:02:57.7]} 5. Qxf3 {[%clk
0:00:21]} 5... Qxd5 {[%clk 0:02:58.1]} 6. Qxd5 {[%clk 0:00:19.8]} 6... Nxd5
{[%clk 0:02:59]} 7. Bc4 {[%clk 0:00:20.1]} 7... Nb6 {[%clk 0:02:59.2]} 8. Bb3
{[%clk 0:00:20.3]} 8... Nc6 {[%clk 0:02:59.5]} 9. c3 {[%clk 0:00:19.7]} 9... a5
{[%clk 0:02:59.8]} 10. d4 {[%clk 0:00:19.4]} 10... a4 {[%clk 0:03:00]} 11. Bc2
{[%clk 0:00:20.3]} 11... e6 {[%clk 0:03:00.3]} 12. O-O {[%clk 0:00:20.5]} 12...
Be7 {[%clk 0:03:00.6]} 13. Nd2 {[%clk 0:00:20]} 13... O-O {[%clk 0:03:00.5]} 14.
Ne4 {[%clk 0:00:20.6]} 14... h6 {[%clk 0:02:52]} 15. Bf4 {[%clk 0:00:20]} 15...
Nd5 {[%clk 0:02:51]} 16. Bg3 {[%clk 0:00:20.4]} 16... f5 {[%clk 0:02:35.7]} 17.
Nc5 {[%clk 0:00:16.1]} 17... Bxc5 {[%clk 0:02:35.8]} 18. dxc5 {[%clk 0:00:17]}
18... a3 {[%clk 0:02:36.2]} 19. b4 {[%clk 0:00:17.2]} 19... Nxc3 {[%clk
0:02:36]} 20. Bb3 {[%clk 0:00:17.3]} 20... Ne2+ {[%clk 0:02:16.9]} 21. Kh2
{[%clk 0:00:16.2]} 21... Ncd4 {[%clk 0:02:17]} 22. Bxc7 {[%clk 0:00:14.7]} 22...
Nxb3 {[%clk 0:02:12.1]} 23. axb3 {[%clk 0:00:15.6]} 23... Nd4 {[%clk 0:02:03.7]}
24. Be5 {[%clk 0:00:15.2]} 24... Nc2 {[%clk 0:01:58.4]} 25. Rac1 {[%clk
0:00:15.3]} 25... Nxb4 {[%clk 0:01:57.1]} 26. Rfd1 {[%clk 0:00:15.8]} 26... Rfd8
{[%clk 0:01:50.9]} 27. Rxd8+ {[%clk 0:00:06.8]} 27... Rxd8 {[%clk 0:01:50.4]}
28. Bd6 {[%clk 0:00:07.7]} 28... a2 {[%clk 0:01:29.5]} 29. Ra1 {[%clk
0:00:05.9]} 29... Ra8 {[%clk 0:01:27]} 30. Be5 {[%clk 0:00:04.8]} 30... Nc2
{[%clk 0:01:15.2]} 31. Rd1 {[%clk 0:00:03.9]} 31... a1=Q {[%clk 0:01:14.6]} 32.
Bxa1 {[%clk 0:00:04.4]} 32... Nxa1 {[%clk 0:01:13.8]} 33. b4 {[%clk 0:00:03.1]}
33... Nc2 {[%clk 0:01:05.4]} 34. b5 {[%clk 0:00:03.1]} 34... Rc8 {[%clk
0:00:53.5]} 35. Rc1 {[%clk 0:00:02.2]} 35... Nb4 {[%clk 0:00:52.3]} 0-1

[Event "*** SCC Grand Prix: Titled Tuesday Blitz"]
[Site "Chess.com"]
[Date "2020.08.04"]
[Round "2"]
[White "GigaQuparadze"]
[Black "GoltsevDmitry2000"]
[Result "0-1"]
[WhiteElo "2930"]
[BlackElo "2632"]
[TimeControl "180+1"]
[EndTime "14:02:26 PDT"]
[Termination "GoltsevDmitry2000 won by resignation"]

1. e4 {[%clk 0:03:00.9]} 1... c5 {[%clk 0:02:59.8]} 2. Nf3 {[%clk 0:03:00.4]}
2... e6 {[%clk 0:03:00.7]} 3. d4 {[%clk 0:02:59.8]} 3... cxd4 {[%clk 0:03:01.6]}
4. Nxd4 {[%clk 0:03:00.6]} 4... Nc6 {[%clk 0:03:02.5]} 5. Nc3 {[%clk 0:03:00.7]}
5... a6 {[%clk 0:03:02.2]} 6. Nxc6 {[%clk 0:03:00.2]} 6... bxc6 {[%clk
0:03:02.3]} 7. e5 {[%clk 0:03:00.7]} 7... Ne7 {[%clk 0:03:01.6]} 8. g3 {[%clk
0:02:59.2]} 8... Nd5 {[%clk 0:03:01]} 9. Bg2 {[%clk 0:02:58.4]} 9... Nxc3 {[%clk
0:02:56]} 10. bxc3 {[%clk 0:02:57.9]} 10... Qa5 {[%clk 0:02:56.4]} 11. Qd4
{[%clk 0:02:57.6]} 11... Bc5 {[%clk 0:02:52.9]} 12. Qd3 {[%clk 0:02:56.8]} 12...
Bb4 {[%clk 0:02:44.2]} 13. O-O {[%clk 0:02:20.9]} 13... Bxc3 {[%clk 0:02:41.5]}
14. Rb1 {[%clk 0:02:21]} 14... Bxe5 {[%clk 0:02:39.2]} 15. Ba3 {[%clk 0:02:20]}
15... Qc3 {[%clk 0:02:18.9]} 16. Qe2 {[%clk 0:02:01.6]} 16... Qxa3 {[%clk
0:02:10.5]} 17. Qxe5 {[%clk 0:02:01.5]} 17... O-O {[%clk 0:02:10.4]} 18. c4
{[%clk 0:02:01.4]} 18... d5 {[%clk 0:02:06]} 19. Qc7 {[%clk 0:01:59.9]} 19...
Qxa2 {[%clk 0:02:01.4]} 20. Qxc6 {[%clk 0:01:57]} 20... Ra7 {[%clk 0:01:43]} 21.
cxd5 {[%clk 0:01:57]} 21... exd5 {[%clk 0:01:31]} 22. Bxd5 {[%clk 0:01:57.9]}
22... Qa3 {[%clk 0:01:30.1]} 23. Rb8 {[%clk 0:01:52.2]} 23... Bf5 {[%clk
0:00:51.2]} 24. Rxf8+ {[%clk 0:01:38.2]} 24... Qxf8 {[%clk 0:00:52.1]} 25. Re1
{[%clk 0:01:38.2]} 25... Re7 {[%clk 0:00:44.1]} 26. Ra1 {[%clk 0:01:21.2]} 26...
Bd3 {[%clk 0:00:38]} 27. Bb3 {[%clk 0:01:13.1]} 27... Qe8 {[%clk 0:00:30.9]} 28.
Qc3 {[%clk 0:01:11.8]} 28... Bb5 {[%clk 0:00:30.2]} 29. Bd5 {[%clk 0:01:11.2]}
29... Qd7 {[%clk 0:00:25.5]} 30. Rd1 {[%clk 0:01:07.7]} 30... Qc7 {[%clk
0:00:21.1]} 31. Qb3 {[%clk 0:00:57.5]} 31... g6 {[%clk 0:00:17]} 32. h4 {[%clk
0:00:57.4]} 32... Qe5 {[%clk 0:00:16.4]} 33. Qf3 {[%clk 0:00:56.8]} 33... Be2
{[%clk 0:00:15.5]} 34. Bxf7+ {[%clk 0:00:52]} 34... Kg7 {[%clk 0:00:11.5]} 35.
Qa8 {[%clk 0:00:49.9]} 35... Rxf7 {[%clk 0:00:08.3]} 36. Rd8 {[%clk 0:00:49.8]}
36... Qa1+ {[%clk 0:00:05.8]} 37. Kh2 {[%clk 0:00:49]} 37... Rxf2+ {[%clk
0:00:06.1]} 38. Kh3 {[%clk 0:00:48.6]} 38... Qf1+ {[%clk 0:00:06.5]} 0-1